Organisation Name,Organisation Code,Organisational Unit,Service Category Label,Procurement Category,Supplier Name,Supplier Other ID,Payment Date,Transaction Number,Amount (�),Purpose
Eden District Council,http://opendatacommunities.org/id/district-council/eden,Information Technology Manager,Information Technology,IT Contracts & Maintenance,INSIGHT DIRECT (UK) LTD,INS014,09/11/2018,168352,25250,ANNUAL COVER 01.10.18-30.09.19
Eden District Council,http://opendatacommunities.org/id/district-council/eden,Information Technology Manager,Information Technology,GIS Platform,ASTUN TECHNOLOGY LIMITED,AST004,09/11/2018,168419,22500,ANNUAL OEA PAYMENT 18/19
Eden District Council,http://opendatacommunities.org/id/district-council/eden,Human Resources Manager,Central Expenses,Advertising,INSIDE HOUSING,INS022,09/11/2018,168430,995,HOUSING DEVELOPMENT OFFICER 26.10.18
Eden District Council,http://opendatacommunities.org/id/district-council/eden,Planning Policy Manager,Local Plans & Policy,Child Care Voucher Scheme,BUSY BEES CHILDCARE VOUCHERS,BUS004,18/10/2018,168494,1549,CHILDCARE VOUCHER OCT 18 DDR
Eden District Council,http://opendatacommunities.org/id/district-council/eden,Technical Services Manager,Administrative Buildings,Planned Maintenance,AMEY PLC,TFE001,09/11/2018,164850,3459.1,WINTER GRITTING VARIOUS SITES
Eden District Council,http://opendatacommunities.org/id/district-council/eden,Environmental Services,Environmental Services,Software � maintenance,CIVICA UK LTD,CIV002,09/11/2018,167679,666.67,LICENCE SUPP/MAINT/01.08.18-31.03.19
Eden District Council,http://opendatacommunities.org/id/district-council/eden,Information Technology Manager,Information Technology,IT Contracts & Maintenance,IT PROFESSIONAL SERVICES LTD,ITP001,09/11/2018,168234,2480,V700 CONTROLLER 1 TRAY 24X7 ONSITE
Eden District Council,http://opendatacommunities.org/id/district-council/eden,Financial Services Manager,VAT CONTROL ACCOUNT,Unique payments ****,ROYAL SOCIETY FOR THE PREVENTION OF ACCIDENTS,ROY006,09/11/2018,168417,2558,INSPECTION COURSE
Eden District Council,http://opendatacommunities.org/id/district-council/eden,Environmental Services,1996 Mandatory Renovation Grants,Capital grants,TOP NOTCH CONTRACTORS LTD,TOP003,09/11/2018,168414,6798,FINAL PAYMENT 
Eden District Council,http://opendatacommunities.org/id/district-council/eden,Environmental Services,1996 Mandatory Renovation Grants,Capital grants,KJS ACCESS SOLUTIONS,KJS001,09/11/2018,168416,1766.45,FINAL PAYMENT 
Eden District Council,http://opendatacommunities.org/id/district-council/eden,Commercial Services Manager,Tourism Promotion,Marketing,1 MEDIA LTD,1ME001,09/11/2018,168420,650,AUDIO SUPPORT EDC TOURISM SUMMIT 2018
Eden District Council,http://opendatacommunities.org/id/district-council/eden,Environmental Services,1996 Mandatory Renovation Grants,Capital grants,MCDOUGALL BUILDING CONTRACTORS,MCD002,09/11/2018,168422,2800,FINAL PAYMENT
Eden District Council,http://opendatacommunities.org/id/district-council/eden,Technical Services Manager,Administrative Buildings,Electricity,NPOWER LTD,NPO001,09/11/2018,168424,1090.53,TOWN HALL  SEPT 18
Eden District Council,http://opendatacommunities.org/id/district-council/eden,Commercial Services Manager,Penrith TIC Trading Account,Commission,PENRITH PLAYERS THEATRE LTD,PEN002,09/11/2018,168428,680.2,TICKET SALES IMPORTANCE OF BEING ERNEST
Eden District Council,http://opendatacommunities.org/id/district-council/eden,Technical Services Manager,Administrative Buildings,Electricity,NPOWER LTD,NPO001,09/11/2018,168432,1102.83,TOWN HALL AUG 18
Eden District Council,http://opendatacommunities.org/id/district-council/eden,Technical Services Manager,Administrative Buildings,Electricity,NPOWER LTD,NPO001,09/11/2018,168433,1107.78,TOWN HALL JULY 18
Eden District Council,http://opendatacommunities.org/id/district-council/eden,Technical Services Manager,Administrative Buildings,Electricity,NPOWER LTD,NPO001,09/11/2018,168434,1051.17,TOWN HALL JUNE 18
Eden District Council,http://opendatacommunities.org/id/district-council/eden,Technical Services Manager,Administrative Buildings,Electricity,NPOWER LTD,NPO001,09/11/2018,168435,1070.48,TOWN HALL MAY 18
Eden District Council,http://opendatacommunities.org/id/district-council/eden,Technical Services Manager,Administrative Buildings,Electricity,NPOWER LTD,NPO001,09/11/2018,168436,1079.04,TOWN HALL APRIL 18
Eden District Council,http://opendatacommunities.org/id/district-council/eden,Human Resources Manager,Staff Development,Training Expenses,NEWCASTLE UNIVERSITY - TUITION FEES TEAM,NEW028,09/11/2018,168453,3600,STUDENT FEES  9/18 TO 9/19
Eden District Council,http://opendatacommunities.org/id/district-council/eden,Human Resources Manager,Staff Development,Training Expenses,NEWCASTLE UNIVERSITY - TUITION FEES TEAM,NEW028,09/11/2018,168454,3250,STUDENT FEES 24/9/18 TO 09/19
Eden District Council,http://opendatacommunities.org/id/district-council/eden,Technical Services Manager,Cemeteries,ADHOC WORKS FOR BURIALS,AMEY PLC,TFE001,09/11/2018,168456,2077.24,GROUNDS MAINTENANCE
Eden District Council,http://opendatacommunities.org/id/district-council/eden,Commercial Services Manager,Tourism Promotion,Subscriptions & levies,CUMBRIA TOURISM,CUM066,09/11/2018,168059,4785,CUMBRIA TOURISM PARTNERSHIP 18/19
Eden District Council,http://opendatacommunities.org/id/district-council/eden,Planning Policy Manager,Local Plans & Policy,Professional fees,HUNTER JOHNSTONE MARKETING SOLUTIONS,HUN004,09/11/2018,168072,600,FAQ'S WEBSITE PAGE
Eden District Council,http://opendatacommunities.org/id/district-council/eden,Commercial Services Manager,Town Centres,Grants and contributions,CUMBRIA CVS,CUM080,09/11/2018,168088,4720,CORE FUNDING 18/19
Eden District Council,http://opendatacommunities.org/id/district-council/eden,Commercial Services Manager,Community Development & Engagement,Grants and contributions,KIRKBY STEPHEN TOWN COUNCIL,KIR014,09/11/2018,168089,4540,GRANT
Eden District Council,http://opendatacommunities.org/id/district-council/eden,Technical Services Manager,Vehicle Parking Off Street,Contract parking Service,CUMBRIA COUNTY COUNCIL,CCC002,09/11/2018,168109,2932.86,PATROLS / PCNS 12 WKS
Eden District Council,http://opendatacommunities.org/id/district-council/eden,Technical Services Manager,Central Expenses,Safety training  205800 only,LAKES TRAINING SOLUTIONS LTD,LAK035,09/11/2018,168251,525,AGRESSION AND CONFLICE TRAINING 25.10.18
Eden District Council,http://opendatacommunities.org/id/district-council/eden,Financial Services Manager,Arts and Leisure,Balance Sheet entry BS,GREENWICH LEISURE LTD,NCL001,09/11/2018,168255,9099.11,MANAGEMENT FEE JULY 18
Eden District Council,http://opendatacommunities.org/id/district-council/eden,Revenue/Benefits Manager,Revenue & Benefits,Software � maintenance,CIVICA UK LTD,CIV002,09/11/2018,168353,900,ICON-CONVERSION O9F EXISITING CHIP & PIN
Eden District Council,http://opendatacommunities.org/id/district-council/eden,Revenue/Benefits Manager,Revenue & Benefits,Postages,ROYAL MAIL NW,ROY001,09/11/2018,168354,1240.3,POSTAGE 03.10.18-23.10.08
Eden District Council,http://opendatacommunities.org/id/district-council/eden,Commercial Services Manager,Tourism Promotion,Hospitality,SHAP WELLS HOTEL,SHA013,09/11/2018,168418,1541.67,BUFFET LUNCH REFRESHMENTS /ROOM BOOKING
Eden District Council,http://opendatacommunities.org/id/district-council/eden,Technical Services Manager,Recycling,VRC Payments,PLUMPTON PRIMARY SCHOOL,DAV005,09/11/2018,168544,535.04,Recycling Credits April 18 - Sept 18
Eden District Council,http://opendatacommunities.org/id/district-council/eden,Technical Services Manager,Recycling,VRC Payments,SHAP PARISH COUNCIL,SHA008,09/11/2018,168553,515.78,Recycling Credits April 18 - Sept 18
Eden District Council,http://opendatacommunities.org/id/district-council/eden,Commercial Services Manager,Museum,Other charges for services,KAREN MACDOUGALL MA DIP ARCH,MCD001,16/11/2018,168586,540,18 hours LoTC submission
Eden District Council,http://opendatacommunities.org/id/district-council/eden,Commercial Services Manager,Economic Development and Promotion,Professional fees,RESOURCE AND ENVIRONMENTAL CONSULTANTS LTD,RES006,16/11/2018,168600,850,GEO-ENVIRONMENTAL DESK STUDY
Eden District Council,http://opendatacommunities.org/id/district-council/eden,Legal Services Manager,Register of Electors,Equipment � maintenance,THE DOCUMENT MANAGEMENT GROUP LTD,DOC002,16/11/2018,168625,1205,support contract fujitsu scanner
Eden District Council,http://opendatacommunities.org/id/district-council/eden,Technical Services Manager,Technical Services,Software � purchase,GRAITEC LTD,GRA030,16/11/2018,168626,1420,autocad re-newal
Eden District Council,http://opendatacommunities.org/id/district-council/eden,Financial Services Manager,Corporate Costs,Professional fees,CIRRUS PURCHASING LTD,CIR004,16/11/2018,168446,800,ONGOING PROCUREMENT ADVICE
Eden District Council,http://opendatacommunities.org/id/district-council/eden,Technical Services Manager,Land Charges,Professional fees,CUMBRIA COUNTY COUNCIL,CCC002,16/11/2018,168502,2051.6,EDC SEARCHES SEP 18
Eden District Council,http://opendatacommunities.org/id/district-council/eden,Commercial Services Manager,Economic Development and Promotion,Professional fees,CROSBY GRANGER ARCHITECTS LTD,CRO027,16/11/2018,168507,13056,CONDITION SURVEYS APPROX 40 BUILDINGS
Eden District Council,http://opendatacommunities.org/id/district-council/eden,Commercial Services Manager,Economic Development and Promotion,Professional fees,CROSBY GRANGER ARCHITECTS LTD,CRO027,16/11/2018,168562,6727,ARCHITECTURAL SERVICES
Eden District Council,http://opendatacommunities.org/id/district-council/eden,Technical Services Manager,Recycling,Recycling - Garden Waste,CUMBRIA WASTE RECYCLING LTD,CUM022,16/11/2018,168564,22856.81,GW-03-18/19
Eden District Council,http://opendatacommunities.org/id/district-council/eden,Technical Services Manager,Footway Lighting,Building works,ELECTRICITY NORTH WEST LTD,ELE005,16/11/2018,168590,926,LAMP TRANSFER  OAK LEA RAVENSTONEDALE
Eden District Council,http://opendatacommunities.org/id/district-council/eden,Technical Services Manager,Footway Lighting,Building works,ELECTRICITY NORTH WEST LTD,ELE005,16/11/2018,168591,926,LAMP TRANSFER OLD COTTAGE CROSBY GARRETT
Eden District Council,http://opendatacommunities.org/id/district-council/eden,Technical Services Manager,Arts and Leisure,Other contributions,EDEN ARTS TRUST,EDE013,16/11/2018,168594,2000,CONTRIBUTION FOR ROUTE 66 - COPELAND COU
Eden District Council,http://opendatacommunities.org/id/district-council/eden,Technical Services Manager,Closed Church Yards,GM INSPECTIONS & MAINTENANCE,AMEY PLC,TFE001,16/11/2018,167531,32882.49,M-GM78
Eden District Council,http://opendatacommunities.org/id/district-council/eden,Technical Services Manager,Central Expenses,Ergonomic Assessments,HEATONS OFFICE SOLUTIONS LTD,LAK004,16/11/2018,168499,4931.85,PAPER / STATIONERY / CHAIRS
Eden District Council,http://opendatacommunities.org/id/district-council/eden,Commercial Services Manager,Economic Development and Promotion,Seminars,SHN TRAINING SERVICES LTD,SHN001,16/11/2018,168506,540,9 X FIRST AID AT WORK
Eden District Council,http://opendatacommunities.org/id/district-council/eden,Human Resources Manager,Staff Development,In house training,PAUL BROWN TRAINING LTD,PAU007,16/11/2018,168508,550,excel training 24.10.18
Eden District Council,http://opendatacommunities.org/id/district-council/eden,Technical Services Manager,Parks and Open Spaces,GM External Contractors,AMEY PLC,TFE001,16/11/2018,168605,5252.54,GM142
Eden District Council,http://opendatacommunities.org/id/district-council/eden,Revenue/Benefits Manager,Revenue & Benefits,Charges to other LA's,SOUTH LAKELAND DISTRICT COUNCIL,SOU006,16/11/2018,168619,15756.52,shared appeals officer recharge
Eden District Council,http://opendatacommunities.org/id/district-council/eden,Technical Services Manager,Administrative Buildings,Electricity,NPOWER LTD,NPO001,16/11/2018,168621,830.85,MANSION HOUSE
Eden District Council,http://opendatacommunities.org/id/district-council/eden,Technical Services Manager,Administrative Buildings,Electricity,NPOWER LTD,NPO001,16/11/2018,168622,1195.21,TOWN HALL
Eden District Council,http://opendatacommunities.org/id/district-council/eden,Technical Services Manager,Footway Lighting,Electricity,NPOWER LTD,NPO001,16/11/2018,168623,3059.05,MANSION HOUSE STREET LIGHTING
Eden District Council,http://opendatacommunities.org/id/district-council/eden,Technical Services Manager,Administrative Buildings,Planned Maintenance,AMEY PLC,TFE001,16/11/2018,158846,832.08,move office furniture
Eden District Council,http://opendatacommunities.org/id/district-council/eden,Commercial Services Manager,Museum,Supplies general,PRESERVATION EQUIPMENT LTD,PRE009,16/11/2018,168558,739.39,PRESERVATION EQUIPMENT
Eden District Council,http://opendatacommunities.org/id/district-council/eden,Technical Services Manager,Provision of Ameneties,Litter bins,GLASDON UK LTD,GLA003,23/11/2018,168751,2415.75,LITTER BINS
Eden District Council,http://opendatacommunities.org/id/district-council/eden,Technical Services Manager,Public Conveniences,Planned Maintenance,AMEY PLC,TFE001,23/11/2018,167084,1617.8,replace ext manhole covers
Eden District Council,http://opendatacommunities.org/id/district-council/eden,Technical Services Manager,Parks and Open Spaces,Planned Maintenance,AMEY PLC,TFE001,23/11/2018,167317,1022.96,EXTRACTOR FAN
Eden District Council,http://opendatacommunities.org/id/district-council/eden,Technical Services Manager,Cemeteries,Grounds Maint Contract additional works,EDEN TREESCAPES,EDE080,23/11/2018,168213,685,ST PATRICKS CLOSED CHURCH YARD
Eden District Council,http://opendatacommunities.org/id/district-council/eden,Legal Services Manager,Land Management,Planned Maintenance,AMEY PLC,TFE001,23/11/2018,168342,4286.5,MOVE STORED FURNITURE  FROM KT TO DEPOT
Eden District Council,http://opendatacommunities.org/id/district-council/eden,Technical Services Manager,Administrative Buildings,Planned Maintenance,AMEY PLC,TFE001,23/11/2018,164838,4037,REPAIRS TO BUS SHELTER
Eden District Council,http://opendatacommunities.org/id/district-council/eden,Environmental Services,Water Sampling,Professional fees,UNITED UTILITIES WATER PLC,UNI024,23/11/2018,167704,3494.13,income labs aug18
Eden District Council,http://opendatacommunities.org/id/district-council/eden,Environmental Services,Community Wardens,Dog Contract O.O.H retainer,AMEY PLC,TFE001,23/11/2018,167876,896.79,stray dog kennelling
Eden District Council,http://opendatacommunities.org/id/district-council/eden,Environmental Services,Community Wardens,Dog Contract O.O.H retainer,AMEY PLC,TFE001,23/11/2018,167877,896.79,stray dog kennelling may 18
Eden District Council,http://opendatacommunities.org/id/district-council/eden,Environmental Services,Community Wardens,Dog Contract O.O.H retainer,AMEY PLC,TFE001,23/11/2018,167878,896.79,stray dog kennelling june18
Eden District Council,http://opendatacommunities.org/id/district-council/eden,Environmental Services,Community Wardens,Dog Contract O.O.H retainer,AMEY PLC,TFE001,23/11/2018,167879,896.79,stray dog kennelling july18
Eden District Council,http://opendatacommunities.org/id/district-council/eden,Environmental Services,Community Wardens,Dog Contract O.O.H retainer,AMEY PLC,TFE001,23/11/2018,167903,896.79,stray dog kennelling oct 18
Eden District Council,http://opendatacommunities.org/id/district-council/eden,Environmental Services,Homelessness,Accommodation,EDEN HOUSING ASSOCIATION LTD,EDE001,23/11/2018,168065,45590.19,HOMELESSNESS CHARGES
Eden District Council,http://opendatacommunities.org/id/district-council/eden,Commercial Services Manager,Economic Development and Promotion,Professional fees,COUNTRYSIDE CONSULTANTS,COU025,23/11/2018,168413,825,PROFESSIONAL FEES RAILINGS ST LAWRENCE C
Eden District Council,http://opendatacommunities.org/id/district-council/eden,Technical Services Manager,Recycling,VRC Payments,APPLEBY TOWN COUNCIL,APP001,23/11/2018,168437,700,PAYMENT FOR RECYCLING CENTRE
Eden District Council,http://opendatacommunities.org/id/district-council/eden,Environmental Services,Community Wardens,Dog Contract O.O.H retainer,AMEY PLC,TFE001,23/11/2018,168569,896.79,KENNELLING/STRAY DOGS NOV18
Eden District Council,http://opendatacommunities.org/id/district-council/eden,Information Technology Manager,Information Technology,Web Services,OVALTECH LTD,OVA001,23/11/2018,168587,610,web benefits calculator 2018/19
Eden District Council,http://opendatacommunities.org/id/district-council/eden,Environmental Services,1996 Mandatory Renovation Grants,At home in Eden,IMPACT HOUSING ASSOCIATION,IMP001,23/11/2018,168589,825.75,AT HOME IN EDEN SERVICE NOV 18
Eden District Council,http://opendatacommunities.org/id/district-council/eden,Financial Services Manager,Treasury Management,Professional fees,ARLINGCLOSE LTD,ARL002,23/11/2018,168606,10050,TREASURY ADVISORY SERVICES
Eden District Council,http://opendatacommunities.org/id/district-council/eden,Technical Services Manager,Closed Church Yards,GM INSPECTIONS & MAINTENANCE,AMEY PLC,TFE001,23/11/2018,168718,16426.09,M-GM 80
Eden District Council,http://opendatacommunities.org/id/district-council/eden,Technical Services Manager,Recycling,Garden Waste Skips,CUMBRIA WASTE RECYCLING LTD,CUM022,23/11/2018,168725,3100,GREEN WASTE VARIOUS SITES
Eden District Council,http://opendatacommunities.org/id/district-council/eden,Environmental Services,Water Sampling,Professional fees,GATESTRAVEL,GAT004,23/11/2018,168728,1665.29,RAIL/HOTEL BOOKINGS
Eden District Council,http://opendatacommunities.org/id/district-council/eden,Corporate Services Manager,Central Expenses,Postages,NEOPOST LIMITED,NEO001,23/11/2018,168729,2000,FRANKING REFILL
Eden District Council,http://opendatacommunities.org/id/district-council/eden,Technical Services Manager,Recycling,Recycling  - Bring Sites,CUMBRIA WASTE RECYCLING LTD,CUM022,23/11/2018,168733,7259.67,BS-74
Eden District Council,http://opendatacommunities.org/id/district-council/eden,Technical Services Manager,Recycling,Recycling - Bag & Box,CUMBRIA WASTE RECYCLING LTD,CUM022,23/11/2018,168738,20614.78,GB-07-18/19
Eden District Council,http://opendatacommunities.org/id/district-council/eden,Technical Services Manager,Recycling,Recycling - Garden Waste,CUMBRIA WASTE RECYCLING LTD,CUM022,23/11/2018,168739,22856.81,GW-07-18/19
Eden District Council,http://opendatacommunities.org/id/district-council/eden,Technical Services Manager,Central Expenses,Safety training  205800 only,LAKES TRAINING SOLUTIONS LTD,LAK035,23/11/2018,168740,525,AGGRESSION/CONFLICT TRAINING
Eden District Council,http://opendatacommunities.org/id/district-council/eden,Technical Services Manager,Footway Lighting,FL  Contract,AMEY PLC,TFE001,23/11/2018,168750,2578.89,FL-8/2018
Eden District Council,http://opendatacommunities.org/id/district-council/eden,Technical Services Manager,Land Charges,Professional fees,CUMBRIA COUNTY COUNCIL,CCC002,23/11/2018,168752,575,common searches oct18
Eden District Council,http://opendatacommunities.org/id/district-council/eden,Planning Policy Manager,Local Plans & Policy,Child Care Voucher Scheme,BUSY BEES CHILDCARE VOUCHERS,BUS004,20/11/2018,168837,1549,CHILDCARE VOUCHERS DDR 20/11/18
Eden District Council,http://opendatacommunities.org/id/district-council/eden,Corporate Services Manager,Central Expenses,Postages,NEOPOST,NEO004,12/11/2018,168860,950,Postage
Eden District Council,http://opendatacommunities.org/id/district-council/eden,Corporate Services Manager,Central Expenses,Postages,NEOPOST,NEO004,12/11/2018,168861,975,Postage
Eden District Council,http://opendatacommunities.org/id/district-council/eden,Technical Services Manager,Vehicle Parking Off Street,Parking Meters Contract,CALE ACCESS UK LTD,CAL008,30/11/2018,168814,2937,CREDT/SIM CARDS YEARLY FEE
Eden District Council,http://opendatacommunities.org/id/district-council/eden,Legal Services Manager,Land Management,Planned Maintenance,AMEY PLC,TFE001,30/11/2018,165058,23592.52,the butts appleby
Eden District Council,http://opendatacommunities.org/id/district-council/eden,Revenue/Benefits Manager,BID,Contribution by EDC,PENRITH B I D COMPANY LTD,PEN085,30/11/2018,168829,7000,PENRITH BID LEVY PAYMENT
Eden District Council,http://opendatacommunities.org/id/district-council/eden,Technical Services Manager,Recycling,Em Wks Storage,AMEY PLC,TFE001,30/11/2018,168830,508.08,M-M&EW80/2018
Eden District Council,http://opendatacommunities.org/id/district-council/eden,Technical Services Manager,Refuse Collection,Contract refuse collection,AMEY PLC,TFE001,30/11/2018,168831,69541.53,M-RC80
Eden District Council,http://opendatacommunities.org/id/district-council/eden,Environmental Services,Appleby Fair,Street Cleaning Contract,AMEY PLC,TFE001,30/11/2018,168832,17693.43,M-SC80
Eden District Council,http://opendatacommunities.org/id/district-council/eden,Technical Services Manager,Recycling,material price fluctuations,CUMBRIA WASTE RECYCLING LTD,CUM022,30/11/2018,168835,3849.04,F-07-18/19
Eden District Council,http://opendatacommunities.org/id/district-council/eden,Technical Services Manager,Recycling,material price fluctuations,CUMBRIA WASTE RECYCLING LTD,CUM022,30/11/2018,168836,5422.82,BS-F-51-17/18
Eden District Council,http://opendatacommunities.org/id/district-council/eden,Commercial Services Manager,Community Development & Engagement,Balance Sheet entry BS,LOW HESKET VILLAGE HALL,LOW003,30/11/2018,168896,2500,eden comm fund 25% grant
Eden District Council,http://opendatacommunities.org/id/district-council/eden,Planning Policy Manager,Local Plans & Policy,Professional fees,HUNTER JOHNSTONE MARKETING SOLUTIONS,HUN004,30/11/2018,168897,2000,social media final month
Eden District Council,http://opendatacommunities.org/id/district-council/eden,Planning Policy Manager,Local Plans & Policy,Professional fees,HUNTER JOHNSTONE MARKETING SOLUTIONS,HUN004,30/11/2018,168898,11404,design /artwork /leaflets/advert/media
Eden District Council,http://opendatacommunities.org/id/district-council/eden,Planning Policy Manager,Local Plans & Policy,Professional fees,INTRO PR . SOCIAL MEDIA . CONTENT,INT014,30/11/2018,168904,3600,PR SEPTEMBER
Eden District Council,http://opendatacommunities.org/id/district-council/eden,Environmental Services,1996 Mandatory Renovation Grants,Capital grants,PPM LTD,PPM001,30/11/2018,168936,5519.69,FIN PAYMENT  ALSTON
Eden District Council,http://opendatacommunities.org/id/district-council/eden,Environmental Services,1996 Mandatory Renovation Grants,Capital grants,CONISTON CONSULTANTS LTD,CON023,30/11/2018,168937,550,INT PAYMENT APPLEBY
Eden District Council,http://opendatacommunities.org/id/district-council/eden,Technical Services Manager,Administrative Buildings,Gas,CORONA ENERGY,COR003,30/11/2018,168941,545.07,EDC STRICKLANDGATE
Eden District Council,http://opendatacommunities.org/id/district-council/eden,Technical Services Manager,Cemeteries,Grounds Maint Contract additional works,KIRKBY STEPHEN JOINT BURIAL BOARD,KIR049,30/11/2018,168949,2000,CONTRIBUTION TOWARDS WORKS
Eden District Council,http://opendatacommunities.org/id/district-council/eden,Environmental Services,1996 Mandatory Renovation Grants,Capital grants,C W COX & SONS (KENDAL)  LTD,COX001,30/11/2018,168954,3625,fin payment  penrith
Eden District Council,http://opendatacommunities.org/id/district-council/eden,Environmental Services,1996 Mandatory Renovation Grants,Capital grants,MCDOUGALL BUILDING CONTRACTORS,MCD002,30/11/2018,168955,6208,int payment penrith
Eden District Council,http://opendatacommunities.org/id/district-council/eden,Director of Finance,Director of Finance,Professional fees,TIAA LTD,TIA001,30/11/2018,168956,5900,SERVICES PROVIDED - HOUSING BENEFIT
Eden District Council,http://opendatacommunities.org/id/district-council/eden,Commercial Services Manager,Economic Development and Promotion,Professional fees,CROSBY GRANGER ARCHITECTS LTD,CRO027,30/11/2018,168960,7050,DELIVERY PLAN  PLUS CGA HERITAGE DAY
Eden District Council,http://opendatacommunities.org/id/district-council/eden,Planning Services,Environmental Enhancement & Conservation,Professional fees,CAPITA PROPERTY & INFRASTRUCTURE LTD,CAP002,30/11/2018,168439,2348,ARBORICULTURAL SERVICES OCT18
Eden District Council,http://opendatacommunities.org/id/district-council/eden,Financial Services Manager,Treasury Management,Valuation fees,WALTON GOODLAND LTD,WAL008,30/11/2018,168557,2303,PERIOD 1-31 OCTOBER 2018
Eden District Council,http://opendatacommunities.org/id/district-council/eden,Technical Services Manager,Land Management,Devolution Grant,PENRITH TOWN COUNCIL,PEN080,30/11/2018,168577,1457,devolution bus shelters yr 1 grant
Eden District Council,http://opendatacommunities.org/id/district-council/eden,Technical Services Manager,Parks and Open Spaces,Devolution Grant,PENRITH TOWN COUNCIL,PEN080,30/11/2018,168578,840,devolution of services benches yr1 grant
Eden District Council,http://opendatacommunities.org/id/district-council/eden,Planning Policy Manager,Local Plans & Policy,Professional fees,HUNTER JOHNSTONE MARKETING SOLUTIONS,HUN004,30/11/2018,168624,720,update to beacon village website
Eden District Council,http://opendatacommunities.org/id/district-council/eden,Environmental Services,Homelessness,Professional fees,NEIL MORLAND HOUSING CONCULTANT LTD,NMH001,30/11/2018,168727,1875,HOMLESSNESS STRATEGY
Eden District Council,http://opendatacommunities.org/id/district-council/eden,Planning Policy Manager,Local Plans & Policy,Professional fees,INTRO PR . SOCIAL MEDIA . CONTENT,INT014,30/11/2018,168736,3600,PR OCTOBER
Eden District Council,http://opendatacommunities.org/id/district-council/eden,Revenue/Benefits Manager,Benefits,Software � purchase,SOUTH LAKELAND DISTRICT COUNCIL,SOU006,30/11/2018,168737,9690.43,RECHARGE SHARED SERVICES CAPITA INV 6003
Eden District Council,http://opendatacommunities.org/id/district-council/eden,Environmental Services,1996 Mandatory Renovation Grants,Capital grants,TOP NOTCH CONTRACTORS LTD,TOP003,30/11/2018,168755,2575.49,"FIN PAYMENT  ,SHAP"
Eden District Council,http://opendatacommunities.org/id/district-council/eden,Director of Finance,Repairs & Renewals Fund,Equipment � purchase,SOUTH LAKELAND DISTRICT COUNCIL,SOU006,30/11/2018,168762,181562.5,RECHARGE - CONVERSION & IMPLEMENTATION
Eden District Council,http://opendatacommunities.org/id/district-council/eden,Director of Finance,Director of Finance,Professional fees,TIAA LTD,TIA001,30/11/2018,168806,2950,PROCUREMENT &CONTRACT MONITORING
Eden District Council,http://opendatacommunities.org/id/district-council/eden,Revenue/Benefits Manager,Revenue & Benefits,Postages,ROYAL MAIL NW,ROY001,30/11/2018,168808,1089.46,MAIL 24.10.18 - 13.11.18
Eden District Council,http://opendatacommunities.org/id/district-council/eden,Technical Services Manager,Recycling,Bank-Refurbishment,AMEY PLC,TFE001,30/11/2018,168819,830.05,GM146
Eden District Council,http://opendatacommunities.org/id/district-council/eden,Financial Services Manager,Corporate Costs,Bank charges,Barclays Merchant services,bms001,43416,186256,579.1,Merchant Services Charges
Eden District Council,http://opendatacommunities.org/id/district-council/eden,Financial Services Manager,Corporate Costs,Bank charges,Barclays Merchant services,bms002,43417,186257,1026.01,Merchant Services Charges
